{"text_format":"1","workbook":"xlsx","n_sheets":3,"sheets":["QUOTATION","BoQ 03 ( Financial )","BoQ 03 ( Technical )"],"not_rendered":{"charts":0,"images":5,"macros":1,"external_links":2,"defined_names":13,"comments":0,"pivot_tables":0},"unopened":[],"bounds":{"document_bytes":16777216,"sheet_cells":100000,"rows_first":2000,"rows_last":500,"rows_between":2000,"halvings":0,"cell_chars":16384,"cell_head_chars":4096},"cells_cut":0,"cells_raw":0,"read":"whole","date_system":"1900"}

{"sheet":"QUOTATION","index":0,"n_rows":29,"n_cols":8,"rows_kept":29,"cut":false,"hidden":false,"merged":[[28,7,29,7],[18,2,18,5],[16,2,16,3],[17,2,17,3],[1,1,1,7],[4,4,4,6],[5,4,5,6],[7,2,8,4],[7,7,8,7],[9,6,9,7],[22,2,22,3],[23,2,23,3],[24,2,24,3],[25,2,25,3],[28,2,29,3]]}
[null,"QUOTATION REQUEST | TEKLİF TALEBİ - AL AMEEN FOR HUMANITARIAN SUPPORT "]
[null,"طلب عرض سعر"]
[]
[]
[null,null,"PR date | SAT tarihi:",null,"2025-03-28",null,null,"تاريخ طلب الشراء:"]
[null,null,"\nReference of the PR | SAT'nin referansı:",null,"PR/AL165H25 V2/WHO2.01-2.02-2.04-2.05/GZT/PRO-HE/28-3-2025/",null,null,"الرقم المرجعي لطلب الشراء:"]
[]
[null,null,"Quotation valid* from ....../......./........... until ....../......./...........\nTeklif geçerli*  tarihinden ....../......./........... tarihine kadar ....../....../…….... ",null,null,null,null,"صلاحية عرض السعر* من ....../......./........... إلى ....../......./..........."]
[]
[null,null,"*Please note that quotation cannot be valid for less than 3 days or more than 30 days.  | Teklifin 3 günden az veya 30 günden fazla geçerli olamayacağını lütfen unutmayın.",null,null,null," ملاحظة : عرض السعر يكون غير صالح لمدة أقل من ثلاثة أيام أو أكثر من 30 يوم."]
[null,null,"Company | Şirket:",null,null,null,null,"الشركة/المؤسسة:"]
[null,null,"Representative | Temsilci:",null,null,null,null,"اسم الشخص المسؤول:"]
[null,null,"Tel:",null,null,null,null,"الهاتف:"]
[null,null,"Email | E-posta:",null,null,null,null,"البريد الالكتروني:"]
[null,null,"Address | Adres:",null,null,null,null,"العنوان:"]
[]
[null,null,"Items |\nالعناصر",null,"Unit | Birim\nالواحدة","Quantity | Miktar\nالكمية",{"$f":"\"Unit Price in \"&CurrnecyT&\" includes taxes and delivery\"&\" | Birim Fiyata vergiler ve teslimat dahildir\"&\"\n| السعر الإفرادي متضمناً الضريبة \"","v":"Unit Price in EURO includes taxes and delivery | Birim Fiyata vergiler ve teslimat dahildir\n| السعر الإفرادي متضمناً الضريبة "},{"$f":"\"Total Price in \"&CurrnecyT&\" includes taxes and delivery \"&\" | Toplam Fiyata vergiler ve teslimat dahildir\"&\n\"| السعر الإجمالي متضمناً الضريبة والتوصيل\"","v":"Total Price in EURO includes taxes and delivery  | Toplam Fiyata vergiler ve teslimat dahildir| السعر الإجمالي متضمناً الضريبة والتوصيل"}]
[null,1,"Lab consumables  (BoQ 03)",null,{"$f":"'[1]PR FORM'!C16","v":"Lumpsum"},{"$f":"'[1]PR FORM'!D16*'[1]PR FORM'!E16","v":1}]
[null,null,"Total | Toplam |  المجموع"]
[]
[null," Comments/Technical specifications | Yorumlar/Teknik özellikler | التعليقات/المواصفات التقنية"]
[]
[null,null,"Total price (in letter) | Toplam fiyat (mektupla)",null,null,null,null," السعر الكلي ( كتابةً) :"]
[null,null,"Available now | Şu an müsait:",null,null,null,null," كل العناصر متوفرة:"]
[null,null,"The requested quantity is entirely available | İstenen miktar tamamen mevcuttur",null,null,null,null," الكمية المطلوبة متوفرة :"]
[null,null,"Delivery date | Teslim tarihi",null,null,null,null," تاريخ التسليم:"]
[]
[]
[null,null,"\nSupplier's signature and stamp | Tedarikçinin imzası ve kaşesi: ",null,null,null,null,"ختم وتوقيع المورد : "]

{"sheet":"BoQ 03 ( Financial )","index":1,"n_rows":50,"n_cols":7,"rows_kept":50,"cut":false,"hidden":false,"merged":[[0,3,0,6]]}
["BoQ 03",null,"PR/AL165H25 V2/WHO2.01-2.02-2.04-2.05/GZT/PRO-HE/28-3-2025/","Financial"]
["SN","Category\nKategori","Technical Specifications\nTeknik Özellikler","Unit\nBirim","Quantity\nMiktar ","UNIT PRICE","TOTAL PRICE"]
[{"$f":"IF(ISBLANK(B3),\"\",SUBTOTAL(103,$B$3:B3))","v":1},"Lab consumables","Albumin 250 ml kit,Biosystems","Kit",{"$f":"[2]!الجدول6[[#This Row],[Quantity]]*2","v":2},null,{"$f":"Table145[[#This Row],[Quantity\nMiktar ]]*Table145[[#This Row],[UNIT PRICE]]","v":0}]
[{"$f":"IF(ISBLANK(B4),\"\",SUBTOTAL(103,$B$3:B4))","v":2},"Lab consumables","ASLO 50ml kit,Biosystems","Kit",{"$f":"[2]!الجدول6[[#This Row],[Quantity]]*2","v":2},null,{"$f":"Table145[[#This Row],[Quantity\nMiktar ]]*Table145[[#This Row],[UNIT PRICE]]","v":0}]
[{"$f":"IF(ISBLANK(B5),\"\",SUBTOTAL(103,$B$3:B5))","v":3},"Lab consumables","blade, surgical, no. 22, carbon steel, sterile, disposable ,box 100 pcs.","Box",{"$f":"[2]!الجدول6[[#This Row],[Quantity]]*2","v":4},null,{"$f":"Table145[[#This Row],[Quantity\nMiktar ]]*Table145[[#This Row],[UNIT PRICE]]","v":0}]
[{"$f":"IF(ISBLANK(B6),\"\",SUBTOTAL(103,$B$3:B6))","v":4},"Lab consumables","blade, surgical, no. 23, carbon steel, sterile, disposable ,box 100 pcs.","Box",{"$f":"[2]!الجدول6[[#This Row],[Quantity]]*2","v":4},null,{"$f":"Table145[[#This Row],[Quantity\nMiktar ]]*Table145[[#This Row],[UNIT PRICE]]","v":0}]
[{"$f":"IF(ISBLANK(B7),\"\",SUBTOTAL(103,$B$3:B7))","v":5},"Lab consumables","Blood glucose slices /on call plus/,box 50 test.","Box",{"$f":"[2]!الجدول6[[#This Row],[Quantity]]*2","v":20},null,{"$f":"Table145[[#This Row],[Quantity\nMiktar ]]*Table145[[#This Row],[UNIT PRICE]]","v":0}]
[{"$f":"IF(ISBLANK(B8),\"\",SUBTOTAL(103,$B$3:B8))","v":6},"Lab consumables","blood Group set,Fortrees","Kit",{"$f":"[2]!الجدول6[[#This Row],[Quantity]]*2","v":4},null,{"$f":"Table145[[#This Row],[Quantity\nMiktar ]]*Table145[[#This Row],[UNIT PRICE]]","v":0}]
[{"$f":"IF(ISBLANK(B9),\"\",SUBTOTAL(103,$B$3:B9))","v":7},"Lab consumables","blue tip cone micopepette box 500","Box",{"$f":"[2]!الجدول6[[#This Row],[Quantity]]*2","v":12},null,{"$f":"Table145[[#This Row],[Quantity\nMiktar ]]*Table145[[#This Row],[UNIT PRICE]]","v":0}]
[{"$f":"IF(ISBLANK(B10),\"\",SUBTOTAL(103,$B$3:B10))","v":8},"Lab consumables","Calcium (spinreact) kit 200 ml","Kit",{"$f":"[2]!الجدول6[[#This Row],[Quantity]]*2","v":4},null,{"$f":"Table145[[#This Row],[Quantity\nMiktar ]]*Table145[[#This Row],[UNIT PRICE]]","v":0}]
[{"$f":"IF(ISBLANK(B11),\"\",SUBTOTAL(103,$B$3:B11))","v":9},"Lab consumables","Capillary tubes red / blue , box 100 tube","Box",{"$f":"[2]!الجدول6[[#This Row],[Quantity]]*2","v":6},null,{"$f":"Table145[[#This Row],[Quantity\nMiktar ]]*Table145[[#This Row],[UNIT PRICE]]","v":0}]
[{"$f":"IF(ISBLANK(B12),\"\",SUBTOTAL(103,$B$3:B12))","v":10},"Lab consumables","CBC printer roll 5.5 cm","Piece",{"$f":"[2]!الجدول6[[#This Row],[Quantity]]*2","v":40},null,{"$f":"Table145[[#This Row],[Quantity\nMiktar ]]*Table145[[#This Row],[UNIT PRICE]]","v":0}]
[{"$f":"IF(ISBLANK(B13),\"\",SUBTOTAL(103,$B$3:B13))","v":11},"Lab consumables","Chlorine 5%Bottle 1 Liter ","Bottle",{"$f":"[2]!الجدول6[[#This Row],[Quantity]]*2","v":120},null,{"$f":"Table145[[#This Row],[Quantity\nMiktar ]]*Table145[[#This Row],[UNIT PRICE]]","v":0}]
[{"$f":"IF(ISBLANK(B14),\"\",SUBTOTAL(103,$B$3:B14))","v":12},"Lab consumables","Cholesterol (BioSystems) kit 200 ml","Kit",{"$f":"[2]!الجدول6[[#This Row],[Quantity]]*2","v":4},null,{"$f":"Table145[[#This Row],[Quantity\nMiktar ]]*Table145[[#This Row],[UNIT PRICE]]","v":0}]
[{"$f":"IF(ISBLANK(B15),\"\",SUBTOTAL(103,$B$3:B15))","v":13},"Lab consumables","conical plastic tube for urine test","Tube",{"$f":"[2]!الجدول6[[#This Row],[Quantity]]*2","v":4000},null,{"$f":"Table145[[#This Row],[Quantity\nMiktar ]]*Table145[[#This Row],[UNIT PRICE]]","v":0}]
[{"$f":"IF(ISBLANK(B16),\"\",SUBTOTAL(103,$B$3:B16))","v":14},"Lab consumables","containers for urine test, box 500 pcs","Box",{"$f":"[2]!الجدول6[[#This Row],[Quantity]]*2","v":8},null,{"$f":"Table145[[#This Row],[Quantity\nMiktar ]]*Table145[[#This Row],[UNIT PRICE]]","v":0}]
[{"$f":"IF(ISBLANK(B17),\"\",SUBTOTAL(103,$B$3:B17))","v":15},"Lab consumables","Createnine 1L kit,Biosystems","Kit",{"$f":"[2]!الجدول6[[#This Row],[Quantity]]*2","v":4},null,{"$f":"Table145[[#This Row],[Quantity\nMiktar ]]*Table145[[#This Row],[UNIT PRICE]]","v":0}]
[{"$f":"IF(ISBLANK(B18),\"\",SUBTOTAL(103,$B$3:B18))","v":16},"Lab consumables","CRP 400ml with st Kit,Biosystems","Kit",{"$f":"[2]!الجدول6[[#This Row],[Quantity]]*2","v":4},null,{"$f":"Table145[[#This Row],[Quantity\nMiktar ]]*Table145[[#This Row],[UNIT PRICE]]","v":0}]
[{"$f":"IF(ISBLANK(B19),\"\",SUBTOTAL(103,$B$3:B19))","v":17},"Lab consumables","Distilled Water , 5 L","Bottle",{"$f":"[2]!الجدول6[[#This Row],[Quantity]]*2","v":8},null,{"$f":"Table145[[#This Row],[Quantity\nMiktar ]]*Table145[[#This Row],[UNIT PRICE]]","v":0}]
[{"$f":"IF(ISBLANK(B20),\"\",SUBTOTAL(103,$B$3:B20))","v":18},"Lab consumables","EDTA tube,Fl","Tube",{"$f":"[2]!الجدول6[[#This Row],[Quantity]]*2","v":2000},null,{"$f":"Table145[[#This Row],[Quantity\nMiktar ]]*Table145[[#This Row],[UNIT PRICE]]","v":0}]
[{"$f":"IF(ISBLANK(B21),\"\",SUBTOTAL(103,$B$3:B21))","v":19},"Lab consumables","ESR tube,Fl, Black","Tube",{"$f":"[2]!الجدول6[[#This Row],[Quantity]]*2","v":1600},null,{"$f":"Table145[[#This Row],[Quantity\nMiktar ]]*Table145[[#This Row],[UNIT PRICE]]","v":0}]
[{"$f":"IF(ISBLANK(B22),\"\",SUBTOTAL(103,$B$3:B22))","v":20},"Lab consumables","Gel tube, Fl","Tube",{"$f":"[2]!الجدول6[[#This Row],[Quantity]]*2","v":1600},null,{"$f":"Table145[[#This Row],[Quantity\nMiktar ]]*Table145[[#This Row],[UNIT PRICE]]","v":0}]
[{"$f":"IF(ISBLANK(B23),\"\",SUBTOTAL(103,$B$3:B23))","v":21},"Lab consumables","glass slides for microscope box 50 slide","Box",{"$f":"[2]!الجدول6[[#This Row],[Quantity]]*2","v":60},null,{"$f":"Table145[[#This Row],[Quantity\nMiktar ]]*Table145[[#This Row],[UNIT PRICE]]","v":0}]
[{"$f":"IF(ISBLANK(B24),\"\",SUBTOTAL(103,$B$3:B24))","v":22},"Lab consumables","Glucose blood 1L kit,Biosystems","Kit",{"$f":"[2]!الجدول6[[#This Row],[Quantity]]*2","v":6},null,{"$f":"Table145[[#This Row],[Quantity\nMiktar ]]*Table145[[#This Row],[UNIT PRICE]]","v":0}]
[{"$f":"IF(ISBLANK(B25),\"\",SUBTOTAL(103,$B$3:B25))","v":23},"Lab consumables","Glutaraldehyde 2% solution for disinfectant / cleaning  -   1 liter","Bottle",{"$f":"[2]!الجدول6[[#This Row],[Quantity]]*2","v":24},null,{"$f":"Table145[[#This Row],[Quantity\nMiktar ]]*Table145[[#This Row],[UNIT PRICE]]","v":0}]
[{"$f":"IF(ISBLANK(B26),\"\",SUBTOTAL(103,$B$3:B26))","v":24},"Lab consumables","HBS AG TEST,Abon , box 40 test","Box",{"$f":"[2]!الجدول6[[#This Row],[Quantity]]*2","v":12},null,{"$f":"Table145[[#This Row],[Quantity\nMiktar ]]*Table145[[#This Row],[UNIT PRICE]]","v":0}]
[{"$f":"IF(ISBLANK(B27),\"\",SUBTOTAL(103,$B$3:B27))","v":25},"Lab consumables","HCG Pregnancy device,Biomec , box 40 device","Box",{"$f":"[2]!الجدول6[[#This Row],[Quantity]]*2","v":20},null,{"$f":"Table145[[#This Row],[Quantity\nMiktar ]]*Table145[[#This Row],[UNIT PRICE]]","v":0}]
[{"$f":"IF(ISBLANK(B28),\"\",SUBTOTAL(103,$B$3:B28))","v":26},"Lab consumables","HCV TEST ,Abon,box 40 test","Box",{"$f":"[2]!الجدول6[[#This Row],[Quantity]]*2","v":12},null,{"$f":"Table145[[#This Row],[Quantity\nMiktar ]]*Table145[[#This Row],[UNIT PRICE]]","v":0}]
[{"$f":"IF(ISBLANK(B29),\"\",SUBTOTAL(103,$B$3:B29))","v":27},"Lab consumables","Heparin tube,Fl","Tube",{"$f":"[2]!الجدول6[[#This Row],[Quantity]]*2","v":2000},null,{"$f":"Table145[[#This Row],[Quantity\nMiktar ]]*Table145[[#This Row],[UNIT PRICE]]","v":0}]
[{"$f":"IF(ISBLANK(B30),\"\",SUBTOTAL(103,$B$3:B30))","v":28},"Lab consumables","Microscope Cover Glass ,box 1000 pcs","Box",{"$f":"[2]!الجدول6[[#This Row],[Quantity]]*2","v":8},null,{"$f":"Table145[[#This Row],[Quantity\nMiktar ]]*Table145[[#This Row],[UNIT PRICE]]","v":0}]
[{"$f":"IF(ISBLANK(B31),\"\",SUBTOTAL(103,$B$3:B31))","v":29},"Lab consumables","Detrogent solution for spincell (spinreact) 20L","Bottle",{"$f":"[2]!الجدول6[[#This Row],[Quantity]]*2","v":8},null,{"$f":"Table145[[#This Row],[Quantity\nMiktar ]]*Table145[[#This Row],[UNIT PRICE]]","v":0}]
[{"$f":"IF(ISBLANK(B32),\"\",SUBTOTAL(103,$B$3:B32))","v":30},"Lab consumables","Diluent solution for spincell (spinreact) 20L","Bottle",{"$f":"[2]!الجدول6[[#This Row],[Quantity]]*2","v":8},null,{"$f":"Table145[[#This Row],[Quantity\nMiktar ]]*Table145[[#This Row],[UNIT PRICE]]","v":0}]
[{"$f":"IF(ISBLANK(B33),\"\",SUBTOTAL(103,$B$3:B33))","v":31},"Lab consumables","Lyse solution for spincell (spinreact) 1 L","Bottle",{"$f":"[2]!الجدول6[[#This Row],[Quantity]]*2","v":8},null,{"$f":"Table145[[#This Row],[Quantity\nMiktar ]]*Table145[[#This Row],[UNIT PRICE]]","v":0}]
[{"$f":"IF(ISBLANK(B34),\"\",SUBTOTAL(103,$B$3:B34))","v":32},"Lab consumables","plastic tube one use, box 250 tube","Box",{"$f":"[2]!الجدول6[[#This Row],[Quantity]]*2","v":24},null,{"$f":"Table145[[#This Row],[Quantity\nMiktar ]]*Table145[[#This Row],[UNIT PRICE]]","v":0}]
[{"$f":"IF(ISBLANK(B35),\"\",SUBTOTAL(103,$B$3:B35))","v":33},"Lab consumables","PT solution -10 ml / winer ","Kit",{"$f":"[2]!الجدول6[[#This Row],[Quantity]]*2","v":4},null,{"$f":"Table145[[#This Row],[Quantity\nMiktar ]]*Table145[[#This Row],[UNIT PRICE]]","v":0}]
[{"$f":"IF(ISBLANK(B36),\"\",SUBTOTAL(103,$B$3:B36))","v":34},"Lab consumables","Right morgan test,morgan","Kit",{"$f":"[2]!الجدول6[[#This Row],[Quantity]]*2","v":4},null,{"$f":"Table145[[#This Row],[Quantity\nMiktar ]]*Table145[[#This Row],[UNIT PRICE]]","v":0}]
[{"$f":"IF(ISBLANK(B37),\"\",SUBTOTAL(103,$B$3:B37))","v":35},"Lab consumables","safty box 5 l","Box",{"$f":"[2]!الجدول6[[#This Row],[Quantity]]*2","v":24},null,{"$f":"Table145[[#This Row],[Quantity\nMiktar ]]*Table145[[#This Row],[UNIT PRICE]]","v":0}]
[{"$f":"IF(ISBLANK(B38),\"\",SUBTOTAL(103,$B$3:B38))","v":36},"Lab consumables","SGOT (BioSystems) kit 50 ml","Kit",{"$f":"[2]!الجدول6[[#This Row],[Quantity]]*2","v":6},null,{"$f":"Table145[[#This Row],[Quantity\nMiktar ]]*Table145[[#This Row],[UNIT PRICE]]","v":0}]
[{"$f":"IF(ISBLANK(B39),\"\",SUBTOTAL(103,$B$3:B39))","v":37},"Lab consumables","SGPT 200ml kit,Biosystems","Kit",{"$f":"[2]!الجدول6[[#This Row],[Quantity]]*2","v":4},null,{"$f":"Table145[[#This Row],[Quantity\nMiktar ]]*Table145[[#This Row],[UNIT PRICE]]","v":0}]
[{"$f":"IF(ISBLANK(B40),\"\",SUBTOTAL(103,$B$3:B40))","v":38},"Lab consumables","strips for urine test box 150 strips,compiscrean / germany","Box",{"$f":"[2]!الجدول6[[#This Row],[Quantity]]*2","v":20},null,{"$f":"Table145[[#This Row],[Quantity\nMiktar ]]*Table145[[#This Row],[UNIT PRICE]]","v":0}]
[{"$f":"IF(ISBLANK(B41),\"\",SUBTOTAL(103,$B$3:B41))","v":39},"Lab consumables","Triglycerides (BioSystems) kit 200 ml","Kit",{"$f":"[2]!الجدول6[[#This Row],[Quantity]]*2","v":4},null,{"$f":"Table145[[#This Row],[Quantity\nMiktar ]]*Table145[[#This Row],[UNIT PRICE]]","v":0}]
[{"$f":"IF(ISBLANK(B42),\"\",SUBTOTAL(103,$B$3:B42))","v":40},"Lab consumables","urea color blood (250 *2)ml kit , Biosystems","Kit",{"$f":"[2]!الجدول6[[#This Row],[Quantity]]*2","v":2},null,{"$f":"Table145[[#This Row],[Quantity\nMiktar ]]*Table145[[#This Row],[UNIT PRICE]]","v":0}]
[{"$f":"IF(ISBLANK(B43),\"\",SUBTOTAL(103,$B$3:B43))","v":41},"Lab consumables","uric acid 200ml kit,Biosystems","Kit",{"$f":"[2]!الجدول6[[#This Row],[Quantity]]*2","v":4},null,{"$f":"Table145[[#This Row],[Quantity\nMiktar ]]*Table145[[#This Row],[UNIT PRICE]]","v":0}]
[{"$f":"IF(ISBLANK(B44),\"\",SUBTOTAL(103,$B$3:B44))","v":42},"Lab consumables","white tip cone micopepette box 1000 pc","box",{"$f":"[2]!الجدول6[[#This Row],[Quantity]]*2","v":12},null,{"$f":"Table145[[#This Row],[Quantity\nMiktar ]]*Table145[[#This Row],[UNIT PRICE]]","v":0}]
[{"$f":"IF(ISBLANK(B45),\"\",SUBTOTAL(103,$B$3:B45))","v":43},"Lab consumables","widal morgan test,morgan","Kit",{"$f":"[2]!الجدول6[[#This Row],[Quantity]]*2","v":4},null,{"$f":"Table145[[#This Row],[Quantity\nMiktar ]]*Table145[[#This Row],[UNIT PRICE]]","v":0}]
[{"$f":"IF(ISBLANK(B46),\"\",SUBTOTAL(103,$B$3:B46))","v":44},"Lab consumables","wooden sticks,box 100pcs","Box",{"$f":"[2]!الجدول6[[#This Row],[Quantity]]*2","v":20},null,{"$f":"Table145[[#This Row],[Quantity\nMiktar ]]*Table145[[#This Row],[UNIT PRICE]]","v":0}]
[{"$f":"IF(ISBLANK(B47),\"\",SUBTOTAL(103,$B$3:B47))","v":45},"Lab consumables","yellow tip cone micopepette box 1000","Box",{"$f":"[2]!الجدول6[[#This Row],[Quantity]]*2","v":12},null,{"$f":"Table145[[#This Row],[Quantity\nMiktar ]]*Table145[[#This Row],[UNIT PRICE]]","v":0}]
[null,null,"Total",null,null,null,{"$f":"SUBTOTAL(109,Table145[TOTAL PRICE])","v":0}]
["Supplier Name | اسم المزود"]
["Supplier & Signature | توقيع وختم المزود"]

{"sheet":"BoQ 03 ( Technical )","index":2,"n_rows":49,"n_cols":10,"rows_kept":49,"cut":false,"hidden":false,"merged":[[0,3,0,9]]}
["BoQ 03",null,"PR/AL165H25 V2/WHO2.01-2.02-2.04-2.05/GZT/PRO-HE/28-3-2025/","Technical"]
["SN","Category\nKategori","Technical Specifications\nTeknik Özellikler","Unit\nBirim","Trade Name\nTicari Adı","Expiry Date\nSon Kullanma Tarihi","Country of Origin\nMenşei Ülke","Package & Form\nPaket ve Form","Dose\nDoz","Company Or Agent Name\nŞirket veya Temsilci Adı "]
[{"$f":"IF(ISBLANK(B3),\"\",SUBTOTAL(103,$B$3:B3))","v":1},"Lab consumables","Albumin 250 ml kit,Biosystems","Kit"]
[{"$f":"IF(ISBLANK(B4),\"\",SUBTOTAL(103,$B$3:B4))","v":2},"Lab consumables","ASLO 50ml kit,Biosystems","Kit"]
[{"$f":"IF(ISBLANK(B5),\"\",SUBTOTAL(103,$B$3:B5))","v":3},"Lab consumables","blade, surgical, no. 22, carbon steel, sterile, disposable ,box 100 pcs.","Box"]
[{"$f":"IF(ISBLANK(B6),\"\",SUBTOTAL(103,$B$3:B6))","v":4},"Lab consumables","blade, surgical, no. 23, carbon steel, sterile, disposable ,box 100 pcs.","Box"]
[{"$f":"IF(ISBLANK(B7),\"\",SUBTOTAL(103,$B$3:B7))","v":5},"Lab consumables","Blood glucose slices /on call plus/,box 50 test.","Box"]
[{"$f":"IF(ISBLANK(B8),\"\",SUBTOTAL(103,$B$3:B8))","v":6},"Lab consumables","blood Group set,Fortrees","Kit"]
[{"$f":"IF(ISBLANK(B9),\"\",SUBTOTAL(103,$B$3:B9))","v":7},"Lab consumables","blue tip cone micopepette box 500","Box"]
[{"$f":"IF(ISBLANK(B10),\"\",SUBTOTAL(103,$B$3:B10))","v":8},"Lab consumables","Calcium (spinreact) kit 200 ml","Kit"]
[{"$f":"IF(ISBLANK(B11),\"\",SUBTOTAL(103,$B$3:B11))","v":9},"Lab consumables","Capillary tubes red / blue , box 100 tube","Box"]
[{"$f":"IF(ISBLANK(B12),\"\",SUBTOTAL(103,$B$3:B12))","v":10},"Lab consumables","CBC printer roll 5.5 cm","Piece"]
[{"$f":"IF(ISBLANK(B13),\"\",SUBTOTAL(103,$B$3:B13))","v":11},"Lab consumables","Chlorine 5%Bottle 1 Liter ","Bottle"]
[{"$f":"IF(ISBLANK(B14),\"\",SUBTOTAL(103,$B$3:B14))","v":12},"Lab consumables","Cholesterol (BioSystems) kit 200 ml","Kit"]
[{"$f":"IF(ISBLANK(B15),\"\",SUBTOTAL(103,$B$3:B15))","v":13},"Lab consumables","conical plastic tube for urine test","Tube"]
[{"$f":"IF(ISBLANK(B16),\"\",SUBTOTAL(103,$B$3:B16))","v":14},"Lab consumables","containers for urine test, box 500 pcs","Box"]
[{"$f":"IF(ISBLANK(B17),\"\",SUBTOTAL(103,$B$3:B17))","v":15},"Lab consumables","Createnine 1L kit,Biosystems","Kit"]
[{"$f":"IF(ISBLANK(B18),\"\",SUBTOTAL(103,$B$3:B18))","v":16},"Lab consumables","CRP 400ml with st Kit,Biosystems","Kit"]
[{"$f":"IF(ISBLANK(B19),\"\",SUBTOTAL(103,$B$3:B19))","v":17},"Lab consumables","Distilled Water , 5 L","Bottle"]
[{"$f":"IF(ISBLANK(B20),\"\",SUBTOTAL(103,$B$3:B20))","v":18},"Lab consumables","EDTA tube,Fl","Tube"]
[{"$f":"IF(ISBLANK(B21),\"\",SUBTOTAL(103,$B$3:B21))","v":19},"Lab consumables","ESR tube,Fl, Black","Tube"]
[{"$f":"IF(ISBLANK(B22),\"\",SUBTOTAL(103,$B$3:B22))","v":20},"Lab consumables","Gel tube, Fl","Tube"]
[{"$f":"IF(ISBLANK(B23),\"\",SUBTOTAL(103,$B$3:B23))","v":21},"Lab consumables","glass slides for microscope box 50 slide","Box"]
[{"$f":"IF(ISBLANK(B24),\"\",SUBTOTAL(103,$B$3:B24))","v":22},"Lab consumables","Glucose blood 1L kit,Biosystems","Kit"]
[{"$f":"IF(ISBLANK(B25),\"\",SUBTOTAL(103,$B$3:B25))","v":23},"Lab consumables","Glutaraldehyde 2% solution for disinfectant / cleaning  -   1 liter","Bottle"]
[{"$f":"IF(ISBLANK(B26),\"\",SUBTOTAL(103,$B$3:B26))","v":24},"Lab consumables","HBS AG TEST,Abon , box 40 test","Box"]
[{"$f":"IF(ISBLANK(B27),\"\",SUBTOTAL(103,$B$3:B27))","v":25},"Lab consumables","HCG Pregnancy device,Biomec , box 40 device","Box"]
[{"$f":"IF(ISBLANK(B28),\"\",SUBTOTAL(103,$B$3:B28))","v":26},"Lab consumables","HCV TEST ,Abon,box 40 test","Box"]
[{"$f":"IF(ISBLANK(B29),\"\",SUBTOTAL(103,$B$3:B29))","v":27},"Lab consumables","Heparin tube,Fl","Tube"]
[{"$f":"IF(ISBLANK(B30),\"\",SUBTOTAL(103,$B$3:B30))","v":28},"Lab consumables","Microscope Cover Glass ,box 1000 pcs","Box"]
[{"$f":"IF(ISBLANK(B31),\"\",SUBTOTAL(103,$B$3:B31))","v":29},"Lab consumables","Detrogent solution for spincell (spinreact) 20L","Bottle"]
[{"$f":"IF(ISBLANK(B32),\"\",SUBTOTAL(103,$B$3:B32))","v":30},"Lab consumables","Diluent solution for spincell (spinreact) 20L","Bottle"]
[{"$f":"IF(ISBLANK(B33),\"\",SUBTOTAL(103,$B$3:B33))","v":31},"Lab consumables","Lyse solution for spincell (spinreact) 1 L","Bottle"]
[{"$f":"IF(ISBLANK(B34),\"\",SUBTOTAL(103,$B$3:B34))","v":32},"Lab consumables","plastic tube one use, box 250 tube","Box"]
[{"$f":"IF(ISBLANK(B35),\"\",SUBTOTAL(103,$B$3:B35))","v":33},"Lab consumables","PT solution -10 ml / winer ","Kit"]
[{"$f":"IF(ISBLANK(B36),\"\",SUBTOTAL(103,$B$3:B36))","v":34},"Lab consumables","Right morgan test,morgan","Kit"]
[{"$f":"IF(ISBLANK(B37),\"\",SUBTOTAL(103,$B$3:B37))","v":35},"Lab consumables","safty box 5 l","Box"]
[{"$f":"IF(ISBLANK(B38),\"\",SUBTOTAL(103,$B$3:B38))","v":36},"Lab consumables","SGOT (BioSystems) kit 50 ml","Kit"]
[{"$f":"IF(ISBLANK(B39),\"\",SUBTOTAL(103,$B$3:B39))","v":37},"Lab consumables","SGPT 200ml kit,Biosystems","Kit"]
[{"$f":"IF(ISBLANK(B40),\"\",SUBTOTAL(103,$B$3:B40))","v":38},"Lab consumables","strips for urine test box 150 strips,compiscrean / germany","Box"]
[{"$f":"IF(ISBLANK(B41),\"\",SUBTOTAL(103,$B$3:B41))","v":39},"Lab consumables","Triglycerides (BioSystems) kit 200 ml","Kit"]
[{"$f":"IF(ISBLANK(B42),\"\",SUBTOTAL(103,$B$3:B42))","v":40},"Lab consumables","urea color blood (250 *2)ml kit , Biosystems","Kit"]
[{"$f":"IF(ISBLANK(B43),\"\",SUBTOTAL(103,$B$3:B43))","v":41},"Lab consumables","uric acid 200ml kit,Biosystems","Kit"]
[{"$f":"IF(ISBLANK(B44),\"\",SUBTOTAL(103,$B$3:B44))","v":42},"Lab consumables","white tip cone micopepette box 1000 pc","box"]
[{"$f":"IF(ISBLANK(B45),\"\",SUBTOTAL(103,$B$3:B45))","v":43},"Lab consumables","widal morgan test,morgan","Kit"]
[{"$f":"IF(ISBLANK(B46),\"\",SUBTOTAL(103,$B$3:B46))","v":44},"Lab consumables","wooden sticks,box 100pcs","Box"]
[{"$f":"IF(ISBLANK(B47),\"\",SUBTOTAL(103,$B$3:B47))","v":45},"Lab consumables","yellow tip cone micopepette box 1000","Box"]
["Supplier Name | اسم المزود"]
["Supplier & Signature | توقيع وختم المزود"]